Cogmind - Beta 13 @@@ ROGUE MODE // 2024.04.11 @ 18:09:45 Player: Copyrite Result: Destroyed by B-75 Beast with Heavy Machine Gun Performance ------------- Evolutions (1) 500 Regions Visited (5) 1000 Robots Destroyed (18) 90 Value Destroyed (428) 428 Prototype IDs (2) 40 Alien Tech Used (0) 0 Bonus (705) 705 TOTAL SCORE: 2763 Bonus ------- Follower Combat Kills 117 Met Imprinter 300 Was Imprinted 300 Friendly Fire -12 Cogmind --------- Core Integrity 0/400 Matter 300/300 Energy 99/100 System Corruption 0% Temperature Cool (16) Movement Flying (35) Location -6/Proximity Caves Parts ------- > --- POWER (1) -------- (None) > --- PROPULSION (3) --- VTOL Module > --- UTILITY (3) ------ Signal Interpreter > --- WEAPON (2) ------- (None) > --- INVENTORY (5) ---- Hacking Drone Bay Peak State ------------ > --- POWER ------------ Ion Engine > --- PROPULSION ------- VTOL Module VTOL Module VTOL Module > --- UTILITY ---------- Visual Processing Unit Signal Interpreter 0b10 Decoder Chip [Scout] > --- WEAPON ----------- Improved Assault Rifle > --- INVENTORY -------- Flight Unit VTOL Module Hacking Drone Bay [Rating: 19] Favorites ----------- Power Light Nuclear Core Engine Ion Engine Power Core Light Nuclear Core Propulsion VTOL Module Treads Light Treads Flight Unit VTOL Module Utility Visual Processing Unit Device Sensor Array Storage Large Storage Unit Processor Visual Processing Unit Protection Light Armor Plating Weapon Improved Assault Rifle Ballistic Gun Improved Assault Rifle Special Weapon Plasma Cutter Impact Weapon Hammer Slashing Weapon Mining Claw Build | -11 -10 -9 -9 -7 -6 ------- Run | Yrd Mat Mat Min Zio Pro Slots Evolved 2 | . . 2 . . . Power . | . . . . . . Propulsion 1 | . . 1 . . . Utility 1 | . . 1 . . . Weapon . | . . . . . . Parts Attached 32 | 6 10 8 . . 8 Power 6 | 1 1 2 . . 2 Engine 4 | 1 . 1 . . 2 Core 2 | . 1 1 . . . Reactor . | . . . . . . Propulsion 9 | 2 2 1 . . 4 Treads 2 | 2 . . . . . Leg . | . . . . . . Wheel . | . . . . . . Hover . | . . . . . . Flight 7 | . 2 1 . . 4 Utility 9 | 1 3 3 . . 2 Device 2 | . . 1 . . 1 Storage 2 | 1 1 . . . . Processor 4 | . 1 2 . . 1 Hackware . | . . . . . . Protection 1 | . 1 . . . . Artifact . | . . . . . . Weapon 8 | 2 4 2 . . . Energy Gun . | . . . . . . Energy Cannon . | . . . . . . Ballistic Gun 5 | 2 2 1 . . . Ballistic Cannon . | . . . . . . Launcher . | . . . . . . Special Weapon 1 | . . 1 . . . Impact Weapon 1 | . 1 . . . . Slashing Weapon 1 | . 1 . . . . Piercing Weapon . | . . . . . . Special Melee Weapon . | . . . . . . Unidentified Prototypes 2 | . . 2 . . . Parts Lost 16 | . 2 1 . . 13 Power 3 | . . . . . 3 Propulsion 5 | . . . . . 5 Utility 5 | . 1 . . . 4 Weapon 3 | . 1 1 . . 1 Highest Loss Streak 7 | . 1 1 . . 7 To Critical Strikes . | . . . . . . Average Slot Usage (%) 86 | . 91 75 88 88 81 Engine 2 | . 6 1 . . 2 Core 8 | . 7 9 11 11 7 Treads 9 | . 26 . . . . Flight 21 | . . 33 33 33 30 Device 5 | . . 3 11 11 8 Storage 4 | . 13 . . . . Processor 13 | . . 14 22 22 22 Protection 2 | . 6 . . . . Ballistic Gun 13 | . 20 11 11 11 9 Slashing Weapon 2 | . 6 . . . . Naked Turns . | . . . . . . Heaviest Build 31 | 13 31 11 9 9 13 Greatest Support 40 | 40 40 12 12 12 12 Greatest Overweight (x) 9 | 3 9 . . . 1 Average Overweight (x) . | . . . . . . Largest Inventory Capacity 15 | 8 15 5 5 5 5 Average Capacity 7 | 7 13 5 5 5 5 Most Carried 8 | 4 8 5 5 5 5 Average Carried 4 | 2 5 4 5 4 4 Final Capacity 8 | 8 5 5 5 5 5 Final Carried 5 | 4 5 5 5 5 1 Class Distribution -------------------- 47% | Scavenger-Scout 38% | Mutant 11% | Sprinter Dominant Class ---------------- Mutant | -10/Materials Sprinter | -9/Materials Scavenger-Scout | -9/Mines Scavenger-Scout | -7/Zion Scavenger-Scout | -6/Proximity Caves Resources | -11 -10 -9 -9 -7 -6 ----------- Run | Yrd Mat Mat Min Zio Pro Matter Collected 703 | 260 152 49 . 73 169 Remotely . | . . . . . . Salvage Created 585 | . 395 160 . . 30 Parts 43 | . 26 16 . . 1 Haulers Intercepted . | . . . . . . Recyclers Shooed . | . . . . . . Parts Field Recycled . | . . . . . . Retrieved Matter . | . . . . . . Parts Self-Destructed 3 | . . . . . 3 Prevented 3 | . . . . . 3 Kills | -11 -10 -9 -9 -7 -6 ------- Run | Yrd Mat Mat Min Zio Pro Combat Hostiles Destroyed 14 | . 9 4 . . 1 Guns 13 | . 9 3 . . 1 Cannons 1 | . . 1 . . . Classes Destroyed 5 | . 4 1 . . . Builder 1 | . . 1 . . . Recycler 1 | . 1 . . . . Watcher 2 | . 1 1 . . . Swarmer 6 | . 3 2 . . 1 Grunt 8 | . 6 2 . . . Best Kill Streak 4 | . 4 3 . . 1 Combat Bots Only 4 | . 4 2 . . 1 Max Kills in Single Turn 1 | . 1 1 . . 1 Gunslinging . | . . . . . . Exploded . | . . . . . . Melee . | . . . . . . Uniques/NPCs Destroyed . | . . . . . . Combat | -11 -10 -9 -9 -7 -6 -------- Run | Yrd Mat Mat Min Zio Pro Hostile Shots Fired 192 | . 48 21 . . 123 Missed 76 | . 8 12 . . 56 Damage Taken 1499 | . 463 97 . . 939 Core 472 | . 59 21 . . 392 Absorbed by Shields . | . . . . . . Regen/Repaired (Parts) 5 | . . . . 5 . Core Remaining (%) 88 | 100 76 . . . . Volleys Fired 80 | . 37 21 . . 22 Largest 2 | . 2 2 . . 1 Hottest 43 | . 40 43 . . 23 Shots Fired 106 | . 62 22 . . 22 Gun 105 | . 62 21 . . 22 Cannon . | . . . . . . Launcher . | . . . . . . Special 1 | . . 1 . . . Kinetic 105 | . 62 21 . . 22 Thermal 1 | . . 1 . . . Explosive . | . . . . . . Electromagnetic . | . . . . . . Robot Hit Streak 15 | . 15 3 . . 3 Robot Miss Streak 5 | . 5 3 . . 3 Penetration Max . | . . . . . . Secondary Targets 1 | . 1 . . . . Max Gunslinging Chain 1 | . 1 . . . . Shots Hit Robots 68 | . 42 13 . . 13 Core Hits 33 | . 21 6 . . 6 Critical Kills . | . . . . . . Critical Parts Destroyed . | . . . . . . Critical Strikes . | . . . . . . Melee Attacks 5 | . 5 . . . . Impact . | . . . . . . Slashing 5 | . 5 . . . . Piercing . | . . . . . . Sneak Attacks 2 | . 2 . . . . Combat Hostiles . | . . . . . . Follow-up Attacks . | . . . . . . Damage Inflicted 968 | . 521 242 . . 205 Guns 814 | . 378 231 . . 205 Cannons . | . . . . . . Explosions . | . . . . . . Melee 143 | . 143 . . . . Ramming . | . . . . . . Kinetic 814 | . 378 231 . . 205 Thermal 11 | . . 11 . . . Explosive . | . . . . . . Electromagnetic . | . . . . . . Impact . | . . . . . . Slashing 143 | . 143 . . . . Piercing . | . . . . . . Highest Corruption . | . . . . . . Average Corruption . | . . . . . . Corruption Purged . | . . . . . . Corruption Blocked . | . . . . . . Overload Shots . | . . . . . . Overflow Damage 19 | . 19 . . . . Projectiles . | . . . . . . Explosions . | . . . . . . Melee 19 | . 19 . . . . Knockbacks . | . . . . . . Impact . | . . . . . . Kinetic . | . . . . . . Secondary . | . . . . . . Self-Inflicted Damage . | . . . . . . Shots . | . . . . . . Rammed . | . . . . . . Targets Rammed . | . . . . . . Kicked . | . . . . . . Crushed . | . . . . . . Highest Temperature 33 | . 33 9 . . 6 Average Temperature 9 | . 9 5 . . 5 Received Heat Transfer 390 | . 228 24 . . 138 Siege Activations . | . . . . . . Robots Corrupted . | . . . . . . Combat Hostiles . | . . . . . . Parts Fried . | . . . . . . Impact Corruptions . | . . . . . . Robots Melted . | . . . . . . Combat Hostiles . | . . . . . . Parts Melted . | . . . . . . Heat Transferred 37 | . . 37 . . . Parts Sabotaged . | . . . . . . Parts Stolen . | . . . . . . Parts Stripped . | . . . . . . Power Chain Reactions . | . . . . . . Alert | -11 -10 -9 -9 -7 -6 ------- Run | Yrd Mat Mat Min Zio Pro Peak Influence 428 | . 210 428 166 . . Initial 166 | . . . 166 . . Average 83 | . 47 211 166 . . Maximum Alert Level 2 | . 1 2 . . . Low Security (%) 81 | 100 93 39 100 . . Level 1 15 | . 6 45 . . . Level 2 3 | . . 15 . . . Level 3 . | . . . . . . Level 4 . | . . . . . . Level 5 . | . . . . . . High Security . | . . . . . . Max Security . | . . . . . . Squads Dispatched 2 | . 2 . . . . Investigation 1 | . 1 . . . . Extermination . | . . . . . . Reinforcement 1 | . 1 . . . . Assault . | . . . . . . Garrison . | . . . . . . Intercept . | . . . . . . Searches Triggered . | . . . . . . Construction Impeded . | . . . . . . Haulers Reinforced . | . . . . . . Active Scanning Responses . | . . . . . . Cargo Convoy Interrupts . | . . . . . . Stealth | -11 -10 -9 -9 -7 -6 --------- Run | Yrd Mat Mat Min Zio Pro Distress Signals 2 | . . 2 . . . Communications Jammed . | . . . . . . Distress Signals . | . . . . . . Times Spotted 55 | . 15 25 . . 15 Peak Tracking Total 8 | . 3 8 . . 5 Tactical Retreats 9 | . 1 5 . . 3 Traps | -11 -10 -9 -9 -7 -6 ------- Run | Yrd Mat Mat Min Zio Pro Traps Triggered 1 | . 1 . . . . Indirectly . | . . . . . . Trap Hack Attempts . | . . . . . . Triggered . | . . . . . . Disarmed . | . . . . . . Reprogrammed . | . . . . . . Reused . | . . . . . . Traps Extracted . | . . . . . . Installed . | . . . . . . Triggered . | . . . . . . Machines | -11 -10 -9 -9 -7 -6 ---------- Run | Yrd Mat Mat Min Zio Pro Machines Disabled 1 | . . 1 . . . Max in Single Turn 1 | . . 1 . . . Machines Repaired . | . . . . . . Machines Dismantled . | . . . . . . Machines Sabotaged . | . . . . . . Overloaded Fab Kills . | . . . . . . Hacking | -11 -10 -9 -9 -7 -6 --------- Run | Yrd Mat Mat Min Zio Pro Machines Accessed 12 | . 5 6 . . 1 Terminals 12 | . 5 6 . . 1 Fabricators . | . . . . . . Repair Stations . | . . . . . . Recycling Units . | . . . . . . Scanalyzers . | . . . . . . Garrison Access . | . . . . . . Total Hacks 36 | . 16 19 . . 1 Successful 19 | . 6 12 . . 1 Failed 17 | . 10 7 . . . Catastrophic 3 | . . 3 . . . Database Lockouts . | . . . . . . Manual 34 | . 15 17 . 1 1 Terminals 36 | . 16 19 . . 1 Fabricators . | . . . . . . Repair Stations . | . . . . . . Recycling Units . | . . . . . . Scanalyzers . | . . . . . . Garrison Access . | . . . . . . Terminal Hacks 8 | . 2 5 . . 1 Record 1 | . . . . . 1 Robot Analysis 1 | . . 1 . . . Terminal Index 1 | . 1 . . . . Alert Level 3 | . 1 2 . . . Investigation Status 1 | . . 1 . . . Hauler Manifests 1 | . . 1 . . . Fabricator Hacks . | . . . . . . Repair Station Hacks . | . . . . . . Recycling Unit Hacks . | . . . . . . Scanalyzer . | . . . . . . Garrison Access Hacks . | . . . . . . Unauthorized Hacks 11 | . 4 7 . . . Terminals 11 | . 4 7 . . . Assimilate 1 | . . 1 . . . Botnet 10 | . 4 6 . . . Fabricators . | . . . . . . Repair Stations . | . . . . . . Recycling Units . | . . . . . . Scanalyzers . | . . . . . . Garrison Access . | . . . . . . Data Cores Recovered . | . . . . . . Used . | . . . . . . Hacking Detections 11 | . 5 6 . . . Full Trace Events . | . . . . . . Feedback Events . | . . . . . . Feedback Blocked . | . . . . . . Robot Schematics Acquired 3 | . . . . 3 . Robots Built . | . . . . . . Authchips . | . . . . . . Time . | . . . . . . Total Robot Build Rating . | . . . . . . Part Schematics Acquired 13 | . . . . 13 . Parts Built . | . . . . . . Authchips . | . . . . . . Time . | . . . . . . Total Part Build Rating . | . . . . . . Parts Repaired . | . . . . . . Time . | . . . . . . Parts Recycled . | . . . . . . Recycled Matter . | . . . . . . Retrieved Matter . | . . . . . . Retrieved Components . | . . . . . . Parts Scanalyzed . | . . . . . . Part Schematics Acquired . | . . . . . . Parts Damaged . | . . . . . . Bothacking | -11 -10 -9 -9 -7 -6 ------------ Run | Yrd Mat Mat Min Zio Pro Used RIF Installer . | . . . . . . Robots Hacked . | . . . . . . Non-combat . | . . . . . . Combat . | . . . . . . Robot Hacks Applied . | . . . . . . Relay Couplers Released . | . . . . . . Fabnet Peak Effective % . | . . . . . . Robots Rewired . | . . . . . . Allies Hacked . | . . . . . . Hacks Repelled . | . . . . . . Allies | -11 -10 -9 -9 -7 -6 -------- Run | Yrd Mat Mat Min Zio Pro Total Allies 5 | . . 1 . 4 . Largest Group 4 | . . 1 . 4 4 Highest-Rated Group 153 | . . 10 . 153 153 Highest-Rated Ally 40 | . . 10 . 40 40 Total Orders . | . . . . . . Ally Attacks 21 | . . . . . 21 Total Damage 404 | . . . . . 404 Kills 5 | . . . . . 5 Allies Corrupted . | . . . . . . Allies Melted . | . . . . . . Intel | -11 -10 -9 -9 -7 -6 ------- Run | Yrd Mat Mat Min Zio Pro Robot Analysis Total 1 | . . 1 . . . Derelict Logs Recovered 2 | . . . . . 2 Drone Launches . | . . . . . . Drone Recoveries . | . . . . . . Exploration | -11 -10 -9 -9 -7 -6 ------------- Run | Yrd Mat Mat Min Zio Pro Turns Passed 2395 | 88 804 283 8 739 473 Spaces Moved 2843 | 48 417 570 21 1231 556 Core 7 | 6 1 . . . . Treads 434 | 42 392 . . . . Legs . | . . . . . . Wheels . | . . . . . . Hover . | . . . . . . Flight 2402 | . 24 570 21 1231 556 Fastest Speed 29 | 50 32 29 29 29 29 Average Speed 50 | 157 154 29 29 29 33 Slowest Speed 515 | 200 515 29 29 29 114 Overloaded Moves . | . . . . . . Propulsion Burnouts . | . . . . . . Robots Hopped 16 | . . 10 . . 6 Cave-ins Triggered . | . . . . . . Exploration Rate (%) 46 | 5 71 37 9 88 67 Regions Visited 5 Branch Regions 3 Pre-discovered Areas 2 | . . . . 2 . Known Exits Taken 3 | . . 1 1 1 . Unknown Exits Taken 2 | 1 1 . . . . Scrap Searched 4 | . . . . 3 1 Spaces Dug . | . . . . . . Terrain Destroyed . | . . . . . . Melee . | . . . . . . Projectile . | . . . . . . AOE . | . . . . . . Terrain Rammed . | . . . . . . Walls Destroyed . | . . . . . . Machines Disabled . | . . . . . . Actions | -11 -10 -9 -9 -7 -6 --------- Run | Yrd Mat Mat Min Zio Pro Total 3675 | 57 514 650 22 1614 818 Wait 686 | . 23 52 2 376 233 Move 2808 | 47 416 550 20 1230 545 Hop 14 | . . 9 . . 5 Pick Up 23 | 4 9 4 . 4 2 Fast Attach 17 | 6 4 5 . . 2 Attach 9 | . 3 1 . . 5 Detach 1 | . 1 . . . . Swap 6 | . 3 2 . . 1 Drop 24 | . 13 5 . 4 2 Fire 80 | . 37 21 . . 22 Melee 5 | . 5 . . . . Ram . | . . . . . . Kick . | . . . . . . Crush . | . . . . . . Escape Stasis . | . . . . . . Rewire 1 | . . . . . 1 Trap . | . . . . . . Miscellaneous 1 | . . 1 . . . Route ------- -11/Scrapyard -10/Materials (discovered 2 exits: *Mat / [*Min]) -9/Materials (discovered 2 exits: *Mat / *Min) -9/Mines -7/Zion -6/Proximity Caves History --------- Turn | Location | Event 14 | -11/Scrapyard | Discovered new exit (range 16) 89 | -11/Scrapyard | Entered Materials 310 | -10/Materials | Build established: Mutant 469 | -10/Materials | Discovered new exit (range 11) 888 | -10/Materials | Discovered new exit (range 15) 893 | -10/Materials | Entered another Materials area 893 | -9/Materials | Evolved 2 slots: Propulsion x1, Utility x1 1065 | -9/Materials | Discovered new exit (range 6) 1135 | -9/Materials | Discovered new exit (range 4) 1135 | -9/Materials | Identified exit to Materials 1175 | -9/Materials | Identified exit to Mines 1176 | -9/Materials | Entered Mines 1177 | -9/Mines | A Derelict revealed a hidden shortcut to a safe place 1179 | -9/Mines | Identified exit to Zion 1184 | -9/Mines | Entered Zion 1252 | -7/Zion | Discovered new exit (range 17) 1297 | -7/Zion | Learned location of Quarantine (-2) 1395 | -7/Zion | Imprinted 1397 | -7/Zion | Declared Zion's savior 1431 | -7/Zion | Build established: Scavenger-Scout 1615 | -7/Zion | Given the Hacking Drone Bay 1616 | -7/Zion | Found Prototype Device 1741 | -7/Zion | Identified exit to Proximity Caves 1923 | -7/Zion | Entered Proximity Caves 1923 | -6/Proximity Caves | Accompanied by 4 allies 1924 | -6/Proximity Caves | Learned 4 Factory zone layouts 1924 | -6/Proximity Caves | Spotted B-75 Beast 1981 | -6/Proximity Caves | Learned Factory garrison access intel 2249 | -6/Proximity Caves | Attracted the attention of an 0b10 checkpoint 2286 | -6/Proximity Caves | Lost 4 allies 2304 | -6/Proximity Caves | Lost 3 parts (1p2u) 2325 | -6/Proximity Caves | Core integrity fell below 50% 2364 | -6/Proximity Caves | Core integrity fell below 20% 2380 | -6/Proximity Caves | Lost 7 parts (2p4n1w) 2396 | -6/Proximity Caves | Destroyed by B-75 Beast with Heavy Machine Gun Last Messages --------------- Acquired VTOL Module. Acquired 27 matter. Searching scrap... Found Lrg. Matter Pod. Found Adv. ECM Suite. Found 36 Matter. Acquired 24 matter. Acquired Adv. ECM Suite. VTOL Module destroyed. Connecting with Outpost Terminal... >>Query($taT^5 R3pOr+ 0000) .sisT3m C0rRvpTE_ Attempting to rewire G-50 Soldier. G-50 Soldier is broken beyond repair. Imp. Deuterium Engine destroyed. Connecting with Outpost Terminal... Flight Unit destroyed. 0b10 Decoder Chip [Scout] destroyed. Adv. ECM Suite destroyed. [Achievement: Achiever] Map ----- +----------------------------------------------------+ | ?????????#####??????????????################## | | ??##"???# ##?????????????# % ## # | | ?##""??? ##????????????# ###%## | | ?#"""#?? #??????????### ## #+##### #?# #? | | ?# ""## ##?????????#"# #" # #?# ## | | ?# #????????## # #" #?# | | ?# #???????????# # "# ###%## | | ?# ### ##???????????# #" [ "# !#? | | ## #????????????# " # #####? | | ##??????????## """# #????? | | #??????????# T """# #????? | | #??????###### #" """# #????? | | #??????# #" " """# #????? | | #??????# "# # ##### #????? | | #??????# #### ? #????? | | #####??????# #??##" #????? | | #######????????# #????#" ####### ####????? | | #??## #????????# #???? "#?#??? #???????? | | ### #### ###?????## #???? ###?? ??????? | | ??# ## ###???# #???## ???? ??????? | | ??# #???# #????# ##?????##?????? | | ??## #???# ###????# #?????????????? | | ???## ##?### ####?### #?????????????? | | ????## ##?# ### #?????????????? | | ????## % #### BB ####?????????????? | | ????# BB@ #????????????## | | ????## ## #??????????## | | ?????### #;; #### #?????????## | | ???????## ### ##??? ##???????### | | ????????# #####????##;# ##???????## | | ????????## #?????????##?# #???????## | | ?????????## #???????????## ######### | | ??????????### #???????????# | | ???????????## ##???????????#### ##### ### | | ?????????### ##???????????????## ##### #?### | | ?????????# ##?????????????????# #???? | | ?????????# #??????????????????## #???? | | ?????????#######???????????????????###########???? | | ?????????????????????????????????????????????????? | | ?????????????????????????????????????????????????? | | ?????????????????????????????????????????????????? | | ?????????????????????????????????????????????????? | | ?????????????????????????????????????????????????? | | ?????????????????????????????????????????????????? | | ?????????????????????????????????????????????????? | | ?????????????????????????????????????????????????? | | ?????????????????????????????????????????????????? | | ?????????????????????????????????????????????????? | | ?????????????????????????????????????????????????? | | ?????????????????????????????????????????????????? | +----------------------------------------------------+ Best States ------------- Heat Dissipation 28 Energy Generation 16 Energy Capacity 290 Matter Stores 300 Matter Capacity 300 Sight Range 18 Robot Scan Range 14 Terrain Scan Density 85 ECM Strength 2 Armor Coverage 150 Evasion (%) 64 Recoil Reduction 2 Item Schematics ----------------- Transmission Jammer | -7/Zion | Archive Adv. Drone Bay | -7/Zion | Archive Imp. Deuterium Engine | -7/Zion | Archive Imp. Proton Missile Launcher | -7/Zion | Archive Thermal Shield | -7/Zion | Archive Mak. Flight Unit | -7/Zion | Archive Fission Core | -7/Zion | Archive Enh. Gauss Cannon | -7/Zion | Archive Adv. Terrain Scan Processor | -7/Zion | Archive Hyp. Gauss Rifle | -7/Zion | Archive Mak. Cloaking Device | -7/Zion | Archive Microactuators | -7/Zion | Archive Adv. Sensor Array | -7/Zion | Archive Robot Schematics ------------------ Y-45 Defender | -7/Zion | Archive R-06 Scavenger | -7/Zion | Archive L-31 Rogue | -7/Zion | Archive Fabricated ------------ Nothing Alien Tech Used ----------------- None Achievements -------------- Achiever Robot Respite The One Challenges ------------ None Game ------ Seed CoreMyomerInjector Manual? 0 Play Time 00:43:09 Cumulative 21.5 hours Start 2024.04.11 @ 17:17:50 End 2024.04.11 @ 18:09:45 Sessions 1 Manual Loads 0 Difficulty Rogue Special Mode None Game No. 42 Rogue 42 Adventurer 0 Explorer 0 Win Type - Total 0 Types 0/0/0/0/0/0/0/0/0 Lore% 18 Gallery% 24 Achievement% 25 Wizard Run 0 Options --------- Layout 1 ASCII 0 Keyboard 0 Movement Numpad Keybinds 0 Fullscreen 1 Font 32/SmallcapsGlow Map View 50x35 Zoom Use 0% Tactical HUD 0 Map Filters NONE Filters NONE Steam 1 RUN: aec24815-2f51-4c32-be6c-95c62df1e53e